[Event "13th Chennai Open 2022"]
[Site "Chennai"]
[Date "2022.06.22"]
[Round "5.14"]
[White "Gusain, Himal"]
[Black "Patil Priyanshu"]
[Result "1-0"]
[ECO "D00"]
[WhiteElo "2396"]
[BlackElo "1796"]
[Annotator "TA"]
[PlyCount "95"]
[EventDate "2022.06.19"]
[EventType "swiss"]
[EventCountry "IND"]
[SourceTitle "playchess.com"]
[Source "ChessBase"]
[SourceQuality "1"]
[TimeControl "5400+30"]

{[%evp 11,95,0,0,-21,31,-12,-21,-18,-12,-27,-37,-23,27,-43,0,-41,-18,-22,-28,-33,0,-47,-25,-52,-52,-82,-56,-83,0,-73,-36,-42,-42,-39,-35,-41,-36,-53,-37,-79,-78,-72,-75,-206,-182,-250,-100,-127,-121,-130,152,124,183,183,183,183,175,182,379,360,531,525,520,518,480,374,341,354,585,574,560,400,620,471,1396,2379,4910,1864,29988,29988,29987,29988,29988,29989,29989,29990]} 1. d4 {[%emt 0:05:49]} Nf6 {[%emt 0:00:02]} 2. Nc3 {[%emt 0:00:05]} d5 {[%emt 0:00:16]} 3. Bf4 {[%emt 0:00:05]} g6 {[%emt 0:00:07]} 4. e3 {[%emt 0:01:44]} Bg7 {[%emt 0:00:02]} 5. Nf3 {[%emt 0:00:05]} O-O {[%emt 0:00:33]} 6. h3 {[%emt 0:00:03]} c5 {[%emt 0:06:18]} 7. Nb5 {[%emt 0:00:48] Strongly threatening Nc7. D00: 1 d4 d5: Unusual lines.} Na6 {[%emt 0:00:22] [#] Prevents Nc7.} (7... cxd4 $11 8. Bc7 (8. Qxd4 Ne4 $17) 8... Qd7) 8. Be5 $146 {[%emt 0:04:50]} ({Predecessor:} 8. a4 Bf5 9. c3 Nd7 10. Be2 Re8 11. O-O e5 12. Bh2 Qb6 13. dxe5 Be4 14. a5 Qc6 15. Nd6 Bxf3 16. Bxf3 Rxe5 17. Nxf7 Rf5 18. Ne5 {1-0 (18) Indjic,A (2604)-Puranik,A (2548) Kazan 2019}) 8... Ne4 {[%emt 0:12:14]} 9. Bxg7 {[%emt 0:01:43] The position is equal.} Kxg7 {[%emt 0:01:55]} 10. c3 {[%emt 0:00:32]} c4 {[%emt 0:05:26]} 11. Nd2 {[%emt 0:22:46]} f5 {[%emt 0:17:14]} (11... Nxd2 $142 12. Qxd2 Qb6) 12. Na3 {[%emt 0:02:25]} (12. b3 $11) 12... b5 {[%emt 0:11:10]} 13. Nc2 {[%emt 0:03:28] Prevents b4.} Rb8 {[%emt 0:04:04]} 14. a3 {[%emt 0:00:18] Against b4} Rb6 {[%emt 0:00:29]} 15. Be2 {[%emt 0:00:37]} Nc7 {[%emt 0:07:31]} 16. h4 {[%emt 0:03:36]} (16. Nf3 $11) 16... a5 {[%emt 0:04:36]} 17. f4 {[%emt 0:01:43]} Qd6 {[%emt 0:04:58]} 18. Bf3 {[%emt 0:03:58]} Qe6 {[%emt 0:03:37]} 19. h5 {[%emt 0:05:58]} Rd8 {[%emt 0:04:42]} ({Black should try} 19... g5 $17 20. h6+ Kh8 21. Bxe4 fxe4) 20. Bxe4 {[%emt 0:03:59]} (20. Be2 $11 {keeps the balance.}) 20... dxe4 {[%emt 0:00:21]} 21. Qe2 {[%emt 0:00:08]} Nd5 {[%emt 0:05:45]} 22. Qf2 {[%emt 0:00:46]} (22. a4 b4 23. Qf2 bxc3 24. bxc3 g5 25. Nxc4 Nxf4 $1 $17 {[%mdl 512]}) 22... Nf6 {[%emt 0:01:34]} 23. hxg6 {[%emt 0:00:24]} hxg6 {[%emt 0:00:28]} 24. Qg3 {[%emt 0:01:04]} Bd7 {[%emt 0:01:53]} 25. Qh4 {[%emt 0:03:45]} Rbb8 {[%emt 0:01:40] And now ...Rh8 would win.} 26. Qh6+ {[%emt 0:01:00]} Kf7 {[%emt 0:00:02]} 27. O-O-O {[%emt 0:02:09]} (27. Qh4 $17 {was necessary.}) 27... Rg8 {[%emt 0:01:24][%cal Ob5b4]} 28. Qg5 {[%emt 0:01:11]} (28. Qh2 $142) 28... Rg7 {[%emt 0:01:16]} (28... b4 $19 {is more deadly.} 29. axb4 Ba4 30. bxa5 Qc6) 29. d5 {[%emt 0:00:51]} Nxd5 {[%emt 0:01:14]} (29... Qxd5 30. Nf3 $1 {[%mdl 512]} Qxd1+ 31. Kxd1 $18) 30. Nd4 {[%emt 0:00:11] [#]} Qf6 {[%emt 0:00:36][%mdl 8192]} (30... Qd6 31. N2f3 exf3 32. Nxf3 $15) (30... Qb6 $1 $17 {and life is bright.} 31. Rh3 (31. Nxe4 $2 b4 $17) 31... Nf6) 31. Nxe4 $1 $16 {[%emt 0:00:12][%cal Bd2e4,Be4g5,Bg5h7][%mdl 96] Pin. White leaves nothing to chance now.} Qxg5 {[%emt 0:01:38]} (31... Qb6 $16) 32. Nxg5+ $18 {[%emt 0:00:07]} Kf6 {[%emt 0:01:00]} 33. Nh7+ {[%emt 0:10:14] Pair of Knights!} ({Resist} 33. Nxf5 Nxf4 34. exf4 (34. Rxd7 Nd3+ 35. Rxd3 gxf5 $11) 34... Bxf5 $16) 33... Kf7 {[%emt 0:00:52] [#]} 34. Nxf5 {[%emt 0:00:27]} Bxf5 {[%emt 0:01:18]} (34... Nxf4 35. Rxd7 (35. Ng5+ Kf6 $16) 35... Ne2+ 36. Kd2 gxf5) 35. Rxd5 {[%emt 0:00:11]} b4 {[%emt 0:00:33]} (35... Kg8 $142) 36. Ng5+ {[%emt 0:00:30]} Kg8 {[%emt 0:00:30]} 37. e4 {[%emt 0:01:09]} Bg4 {[%emt 0:00:06]} 38. Rxa5 {[%emt 0:04:33]} bxc3 {[%emt 0:00:19]} 39. bxc3 {[%emt 0:00:06]} e6 $2 {[%emt 0:00:23]} (39... e5 {was worth a try.}) 40. Rh4 {[%emt 0:01:02]} Be2 {[%emt 0:00:28]} 41. Nxe6 {[%emt 0:02:32]} Rgb7 {[%emt 0:00:30]} (41... Re7 $142 42. Ra6 Bd3) 42. Kd2 {[%emt 0:00:20]} Rd7+ {[%emt 0:00:52]} (42... Bd3 $142 43. Nc5 Rc7 44. Nxd3 cxd3) 43. Kxe2 {[%emt 0:03:37] Rh6 is the strong threat.} Rb2+ {[%emt 0:00:02]} 44. Ke1 {[%emt 0:00:06] White wants to mate with Ra8+.} Rdd2 {[%emt 0:00:55]} 45. Ra8+ {[%emt 0:00:41] White mates.} Kf7 {[%emt 0:00:02]} 46. Ng5+ {[%emt 0:00:16]} Ke7 {[%emt 0:01:05]} 47. Rh7+ {[%emt 0:00:06]} Kd6 {[%emt 0:00:07]} 48. Rd8+ {[%emt 0:01:12] Weighted Error Value: White=0.31/Black=0.65} 1-0

[Event "13th Chennai Open 2022"]
[Site "Chennai"]
[Date "2022.06.22"]
[Round "5.15"]
[White "Mithun Anand V"]
[Black "Girinath, P.D.S."]
[Result "1-0"]
[ECO "C01"]
[WhiteElo "1672"]
[BlackElo "2361"]
[Annotator "TA"]
[PlyCount "79"]
[EventDate "2022.06.19"]
[EventType "swiss"]
[EventCountry "IND"]
[SourceTitle "playchess.com"]
[Source "ChessBase"]
[SourceQuality "1"]
[TimeControl "5400+30"]

{[%evp 14,79,21,21,20,25,18,15,24,33,29,33,42,35,39,4,16,0,0,0,0,-29,55,54,54,73,57,34,23,31,25,30,27,28,28,27,47,14,15,18,44,20,60,70,166,202,416,415,463,238,238,243,223,232,475,469,887,865,29991,29992,29992,2052,1795,1669,29997,29998,29998,29999]} 1. e4 {[%emt 0:00:02]} e6 {[%emt 0:01:19]} 2. d4 {[%emt 0:00:02]} d5 {[%emt 0:00:18]} 3. exd5 {[%emt 0:00:02]} exd5 {[%emt 0:00:09]} 4. Nf3 {[%emt 0:00:07]} Nf6 {[%emt 0:01:20]} 5. Bd3 {[%emt 0:00:03]} c5 {[%emt 0:00:31][%cal Bc7c5,Bc5c4][%mdl 32]} 6. O-O {[%emt 0:00:04]} c4 {[%emt 0:00:51]} 7. Re1+ {[%emt 0:00:03]} Be7 {[%emt 0:00:08]} 8. Bf1 {[%emt 0:00:04]} O-O {[%emt 0:00:26] C01: French: Exchange Variation.} 9. b3 {[%emt 0:00:02]} cxb3 {[%emt 0:00:23]} 10. axb3 {[%emt 0:00:02]} Bg4 {[%emt 0:05:00] The position is equal.} 11. h3 {[%emt 0:01:11] [#]} Bxf3 $146 {[%emt 0:01:21]} ({Predecessor:} 11... Bh5 12. Rxe7 Qxe7 13. Ba3 Qe4 14. Bxf8 Bxf3 15. Qxf3 Qxf3 16. gxf3 Kxf8 17. Bb5 Nbd7 18. c4 {½-½ (18) Bernadskiy,V (2588)-Razin,V (2379) Lutsk 2018}) 12. Qxf3 {[%emt 0:00:14]} Nc6 {[%emt 0:00:08]} 13. Rd1 {[%emt 0:20:15]} Re8 {[%emt 0:24:27]} 14. Na3 {[%emt 0:14:13]} Ne4 {[%emt 0:15:36]} 15. Bb2 {[%emt 0:11:56]} Bg5 {[%emt 0:11:27]} 16. Bd3 {[%emt 0:13:52]} Nb4 {[%emt 0:07:26]} 17. Nc4 {[%emt 0:09:29]} Bh4 {[%emt 0:15:06]} (17... a5 $11) 18. Bxe4 $14 {[%emt 0:11:24]} Rxe4 {[%emt 0:02:16]} 19. c3 {[%emt 0:02:02]} Nc6 {[%emt 0:06:06]} 20. Nd2 {[%emt 0:01:29]} Re6 {[%emt 0:00:51]} 21. g3 {[%emt 0:00:48]} Bg5 {[%emt 0:01:05]} 22. Nf1 {[%emt 0:01:15]} Na5 {[%emt 0:02:49]} 23. h4 {[%emt 0:01:50]} Bh6 {[%emt 0:00:12]} 24. Ra3 {[%emt 0:07:14]} Rc8 {[%emt 0:01:43]} 25. Nh2 {[%emt 0:00:43][%cal Oc3c4]} (25. Qh5 $5 {[%cal Rc3c4]}) 25... g6 $1 {[%emt 0:00:34]} 26. c4 $36 {[%emt 0:01:58][%mdl 2048] White fights for an advantage.} Bf8 $1 {[%emt 0:00:29]} 27. Ra4 {[%emt 0:01:29]} b5 {[%emt 0:01:13]} 28. cxb5 {[%emt 0:01:35]} (28. cxd5 $2 Rf6 29. Qe4 bxa4 $19) 28... Rc2 {[%emt 0:00:29]} ({Better is} 28... Rb8 $14) 29. Bc1 $18 {[%emt 0:00:30] Ng4 is the strong threat.} ({Don't take} 29. Bc3 Nxb3 30. Ng4 (30. Rxa7 Rf6 $11) 30... Qb6 $16) 29... Ree2 $2 {[%emt 0:00:38]} (29... Nb7 30. Ng4 (30. Rxa7 Qb8 $16) 30... Nd6 31. Qxd5 h5) 30. Be3 {[%emt 0:00:20]} f5 {[%emt 0:00:30]} 31. Rxa5 {[%emt 0:00:54]} Qxa5 {[%emt 0:00:06]} 32. Qxd5+ {[%emt 0:00:03]} Kg7 {[%emt 0:00:51] [#]} 33. Qe5+ {[%emt 0:00:52]} Kf7 $2 {[%emt 0:00:19]} (33... Kg8 34. Qe6+ Kg7) 34. Nf3 {[%emt 0:00:24] White threatens Ng5+ and mate.} ({Not} 34. Qd5+ Kg7 $16) 34... Be7 {[%emt 0:00:45]} (34... Rxe3 $142 35. Qxe3 Qxb5 36. Ng5+ Kg7) 35. Qd5+ {[%emt 0:00:19]} Ke8 {[%emt 0:00:14]} 36. Ne5 {[%emt 0:00:23]} Re1+ {[%emt 0:00:45]} 37. Rxe1 {[%emt 0:00:37]} (37. Kg2 $142 Rxf2+ 38. Kxf2 Re2+ 39. Kxe2 Qa2+ 40. Rd2 Qxd2+ 41. Bxd2 f4 42. Qg8+ Bf8 43. Qf7+ Kd8 44. Qd7#) 37... Qxe1+ {[%emt 0:00:06]} 38. Kg2 {[%emt 0:00:04] [#] Threatening mate with Qg8+.} ({Weaker is} 38. Kh2 Rxf2+ 39. Bxf2 Qxf2+ 40. Qg2 Qxd4 41. Qc6+ Kf8 $11) 38... Rc7 {[%emt 0:00:40]} 39. Qf7+ {[%emt 0:00:11]} Kd8 {[%emt 0:00:05]} 40. Qg8+ {[%emt 0:00:10] Weighted Error Value: White=0.12 (very precise) /Black=0.70} 1-0

[Event "13th Chennai Open 2022"]
[Site "Chennai"]
[Date "2022.06.22"]
[Round "5.16"]
[White "Karthikeyan, P.."]
[Black "Ayyappan P Santhana Prabu"]
[Result "1-0"]
[ECO "B31"]
[WhiteElo "2361"]
[BlackElo "1761"]
[Annotator "TA"]
[PlyCount "87"]
[EventDate "2022.06.19"]
[EventType "swiss"]
[EventCountry "IND"]
[SourceTitle "playchess.com"]
[Source "ChessBase"]
[SourceQuality "1"]
[TimeControl "5400+30"]

{[%evp 12,87,13,16,25,25,30,28,35,32,30,35,38,35,69,45,55,56,47,61,102,79,85,45,60,41,48,50,50,51,52,47,116,131,190,196,140,126,197,68,113,111,111,96,141,128,185,181,175,175,212,205,1723,1689,1664,1667,1638,1560,29984,29982,29982,29983,29988,940,29989,29990,29990,29991,29991,29992,29993,29991,29991,29992,29994,29995,29995,29996]} 1. e4 {[%emt 0:02:51]} c5 {[%emt 0:00:31]} 2. Nf3 {[%emt 0:00:03]} Nc6 {[%emt 0:00:20]} 3. Bb5 {[%emt 0:00:36]} g6 {[%emt 0:00:22]} 4. O-O {[%emt 0:00:10]} Bg7 {[%emt 0:00:21]} 5. c3 {[%emt 0:00:03]} Nf6 {[%emt 0:04:07]} 6. Re1 {[%emt 0:00:13]} O-O {[%emt 0:01:40]} 7. h3 {[%emt 0:00:06]} h6 {[%emt 0:12:07] B31: Sicilian: 2...Nc6 3 Bb5 g6.} 8. d4 {[%emt 0:06:20]} cxd4 {[%emt 0:10:11]} 9. cxd4 {[%emt 0:00:03]} d5 {[%emt 0:04:29] White has an edge.} 10. e5 {[%emt 0:02:20]} Ne4 {[%emt 0:01:11]} 11. Bxc6 {[%emt 0:00:05]} bxc6 {[%emt 0:00:10] [#]} 12. Be3 $146 {[%emt 0:00:04]} ({Predecessor:} 12. Nbd2 c5 13. dxc5 Nxc5 14. Nd4 Nd3 15. Re3 Nxe5 16. Qe2 Qc7 17. Nb5 Qb8 18. Rb3 {0-1 (36) Toumaniantz,R (2188)-Guillon,C (2204) France 2006}) 12... Kh7 {[%emt 0:05:41]} 13. Qc1 {[%emt 0:04:37]} Bd7 {[%emt 0:00:45]} 14. Nc3 {[%emt 0:00:13]} Nxc3 {[%emt 0:06:46]} 15. Qxc3 {[%emt 0:00:31]} f6 {[%emt 0:01:21]} 16. e6 {[%emt 0:04:07]} Be8 {[%emt 0:02:03]} 17. Bf4 {[%emt 0:00:21] White is much more active. The black rooks are badly placed.} g5 {[%emt 0:04:22]} 18. Bh2 {[%emt 0:00:03]} Qb6 {[%emt 0:09:11]} 19. Nd2 {[%emt 0:04:48]} f5 {[%emt 0:08:06]} 20. Be5 {[%emt 0:02:14]} Bxe5 {[%emt 0:00:25]} 21. Rxe5 {[%emt 0:00:08]} g4 {[%emt 0:01:57]} (21... Rb8 $14) 22. Nb3 $16 {[%emt 0:03:42]} gxh3 {[%emt 0:02:29]} (22... Rb8 $16) 23. Qxh3 $18 {[%emt 0:01:34]} f4 {[%emt 0:00:22]} ({Black should try} 23... Qb4 $18 24. Qh4 (24. Rxf5 Rxf5 25. Qxf5+ Bg6 $16) 24... Rg8) 24. Rc1 {[%emt 0:08:03]} a5 {[%emt 0:09:06]} (24... Bg6 $16) 25. Rf5 {[%emt 0:11:36]} ({Better is} 25. Qh4 $18 Rf6 26. Nc5) 25... Bg6 {[%emt 0:06:04]} 26. Rxf8 {[%emt 0:00:30]} Rxf8 {[%emt 0:00:02]} 27. Qc3 $1 {[%emt 0:00:15][%csl LRa5,LRc6]} a4 {[%emt 0:00:20]} 28. Nc5 {[%emt 0:01:53][%cal Bb3c5,Bc5d7,Bd7f8][%mdl 32] Threatens to win with Nd7.} Qb5 {[%emt 0:00:31]} (28... Rg8 $16) 29. Nd7 $1 {[%emt 0:47:31][%csl LRc6,LRf8]} Rg8 {[%emt 0:00:12] aiming for ...Be4.} 30. Qa3 $1 {[%emt 0:00:00]} (30. Qxc6 Qxb2 31. Nf6+ (31. Qc5 $2 Be4 $19) 31... exf6 $15) 30... Re8 {[%emt 0:01:04] [#]} 31. Qf3 $1 {[%emt 0:00:00]} (31. Ne5 $6 Qe2 $16) 31... Be4 $2 {[%emt 0:05:57]} (31... Qxb2 $2 32. Qxf4 Rg8 33. Rxc6 Qb1+ 34. Kh2 (34. Rc1 Qf5 $16)) (31... Rc8 32. Qxf4 (32. Ne5 Be4 $16) 32... Qxb2) 32. Qxf4 {[%emt 0:00:00] Qf7+ would kill now.} Rg8 {[%emt 0:00:02]} 33. Nf8+ {[%emt 0:00:00]} Kg7 {[%emt 0:00:01] [#]} 34. Rc3 $1 {[%emt 0:00:00] White threatens Rg3+ and mate.} Bd3 {[%emt 0:03:24]} (34... Rxf8 35. Rg3+) 35. Qf7+ {[%emt 0:00:04]} (35. Nd7 Qxb2 36. Rxc6 (36. Rxd3 Qb1+ 37. Kh2 Qxd3 $11) 36... Qe2 $18) 35... Kh8 {[%emt 0:00:06]} 36. Qxe7 {[%emt 0:00:02]} Qxb2 {[%emt 0:01:31]} 37. Qf6+ {[%emt 0:00:07]} Rg7 {[%emt 0:00:03]} 38. e7 {[%emt 0:01:32] White mates.} Qb1+ {[%emt 0:00:07]} 39. Kh2 {[%emt 0:00:06]} Qb8+ {[%emt 0:00:06]} 40. f4 {[%emt 0:02:23]} Qb2 {[%emt 0:00:24] [#]} 41. Qxg7+ $3 {[%emt 0:00:37][%mdl 512]} Kxg7 {[%emt 0:00:01] [#]} 42. e8=Q $1 {[%emt 0:00:02]} Qxc3 {[%emt 0:00:02]} (42... Qe2 43. Ne6+) 43. Qe7+ {[%emt 0:00:05]} Kh8 {[%emt 0:01:39]} 44. Ne6 {[%emt 0:00:06] Weighted Error Value: White=0.08 (flawless) /Black=0.34} 1-0

[Event "13th Chennai Open 2022"]
[Site "Chennai"]
[Date "2022.06.22"]
[Round "5.17"]
[White "Konguvel, Ponnuswamy"]
[Black "Sivathanujan, S."]
[Result "1-0"]
[ECO "B42"]
[WhiteElo "2331"]
[BlackElo "1716"]
[Annotator "TA"]
[PlyCount "165"]
[EventDate "2022.06.19"]
[EventType "swiss"]
[EventCountry "IND"]
[SourceTitle "playchess.com"]
[Source "ChessBase"]
[SourceQuality "1"]
[TimeControl "5400+30"]

{[%evp 16,165,38,49,45,29,34,33,38,30,34,37,77,18,26,14,16,5,24,0,0,0,0,-15,18,12,40,12,23,-37,0,-16,10,14,50,61,143,175,285,285,270,264,305,168,208,225,243,231,256,262,262,250,269,261,274,269,320,262,296,281,283,264,368,298,282,0,356,276,329,343,475,371,355,335,456,446,444,437,417,437,437,437,535,544,527,491,559,543,504,545,518,488,677,669,756,720,874,793,935,856,1606,1593,1061,710,4698,4706,29964,29957,29977,29978,29980,29981,29982,29981,29981,29978,29979,29979,29979,29980,29981,29980,29980,29980,29980,29981,29982,29982,29983,29984,29984,29985,29989,29987,29989,29989,29991,29987,29988,29987,29987,29988,29988,29989,29989,29990,29990,29991,29991,29992,29993,29994]} 1. e4 {[%emt 0:00:04]} c5 {[%emt 0:00:05]} 2. Nf3 {[%emt 0:00:18]} e6 {[%emt 0:00:06]} 3. d4 {[%emt 0:00:20]} cxd4 {[%emt 0:00:13]} 4. Nxd4 {[%emt 0:00:06]} a6 {[%emt 0:00:03]} 5. Bd3 {[%emt 0:00:27]} Qc7 {[%emt 0:01:36]} 6. O-O {[%emt 0:00:33]} Nf6 {[%emt 0:00:40]} 7. Qe2 {[%emt 0:00:38]} d6 {[%emt 0:01:30]} 8. c4 {[%emt 0:00:18]} Nbd7 {[%emt 0:01:11] is currently scoring better than 8...g6.} 9. f4 {[%emt 0:01:01]} Nc5 {[%emt 0:06:23] B42: Sicilian: Kan Variation: 5 Bd3.} 10. Nc3 {[%emt 0:13:43]} (10. Bc2 {feels hotter.} e5 11. Nf5 Bxf5 12. exf5 Ncd7 13. Nc3) 10... Nxd3 {[%emt 0:05:35]} 11. Qxd3 {[%emt 0:00:02]} Bd7 {[%emt 0:02:29] [#] White is slightly better.} 12. Bd2 $146 {[%emt 0:00:51]} ({Predecessor:} 12. Kh1 Be7 13. Be3 Rc8 14. Rac1 Qxc4 15. Qb1 Qb4 16. Nf3 Ng4 17. Bd4 O-O 18. h3 {0-1 (30) Johne,S (1862)-Schewe,H (1717) Bad Sooden-Allendorf 2003}) 12... Rc8 {[%emt 0:08:03]} 13. b3 {[%emt 0:00:32]} g6 {[%emt 0:08:27]} 14. Rac1 {[%emt 0:22:46] White is more active.} (14. e5 $16 dxe5 15. fxe5) 14... Bg7 $11 {[%emt 0:05:24]} 15. Kh1 {[%emt 0:00:04]} O-O {[%emt 0:02:10]} 16. Be3 {[%emt 0:00:30]} Qa5 {[%emt 0:13:24][%cal Ob7b5]} 17. Nde2 {[%emt 0:10:16]} Rfd8 {[%emt 0:07:16]} 18. a4 {[%emt 0:06:06] Prevents b5.} ({But not} 18. Qxd6 Bc6 19. Qc5 Qxc5 20. Bxc5 Nxe4 21. Nxe4 Bxe4 $17) 18... Qb4 {[%emt 0:13:05]} 19. Nd4 {[%emt 0:03:29]} ({Don't play} 19. e5 dxe5 20. fxe5 Bc6 $1 $17) 19... Qa5 {[%emt 0:10:40]} 20. Bg1 {[%emt 0:03:01]} Nh5 {[%emt 0:05:30]} (20... Be8 {is interesting.} 21. f5 d5 22. fxe6 dxc4 23. Qf3 cxb3 24. Nxb3 Qh5) 21. Nde2 {[%emt 0:02:08]} Bc6 {[%emt 0:01:29]} 22. Qe3 {[%emt 0:14:33]} ({White should try} 22. f5 $11) 22... Nf6 {[%emt 0:00:51]} 23. Rfd1 {[%emt 0:01:54]} h5 {[%emt 0:01:18]} 24. h3 {[%emt 0:00:24]} Bf8 {[%emt 0:02:38]} (24... Qb4 $5 {[%cal Rb4b3]}) 25. Nd4 {[%emt 0:03:14]} Be8 {[%emt 0:00:37]} ({Black should play} 25... Bh6 $14) 26. f5 $16 {[%emt 0:01:18]} exf5 {[%emt 0:01:03]} (26... e5 $142) 27. exf5 $18 {[%emt 0:00:07]} Qe5 {[%emt 0:00:42]} 28. fxg6 {[%emt 0:00:50]} fxg6 {[%emt 0:00:23]} 29. Ne6 {[%emt 0:02:02]} (29. Qf3 $142) 29... Qxe3 {[%emt 0:01:21]} 30. Bxe3 {[%emt 0:00:04]} Rd7 {[%emt 0:00:20] [#]} 31. Rf1 $1 {[%emt 0:05:23]} Be7 {[%emt 0:00:36]} 32. Bd4 {[%emt 0:00:16]} Nh7 {[%emt 0:00:41]} 33. Nd5 {[%emt 0:00:39][%cal Bc3d5,Bd5b6,Bb6c8][%mdl 32]} Bf7 {[%emt 0:00:31] [#]} 34. Nb6 $1 {[%emt 0:02:30][%csl LRc8,LRd7]} Bxe6 {[%emt 0:00:32]} 35. Nxc8 {[%emt 0:00:03] Threatens to win with Rce1.} Bh4 {[%emt 0:00:34] Prevents Rce1.} 36. Nb6 {[%emt 0:00:34]} Rd8 {[%emt 0:00:29]} 37. Nd5 {[%emt 0:00:14]} Bf5 {[%emt 0:00:32]} 38. Kh2 {[%emt 0:00:43] Strongly threatening g3.} Bd3 {[%emt 0:00:30]} 39. Rf3 {[%emt 0:01:46]} Be4 {[%emt 0:00:27]} 40. Rff1 {[%emt 0:00:33]} Bd3 $1 {[%emt 0:00:19] A strong pair of Bishops.} 41. Rfd1 {[%emt 0:00:26]} Be4 {[%emt 0:00:37]} 42. Rc3 {[%emt 0:00:47]} b5 {[%emt 0:00:27]} 43. axb5 {[%emt 0:01:05]} axb5 {[%emt 0:00:04]} 44. Ra1 {[%emt 0:00:27]} Rd7 {[%emt 0:01:03]} 45. Re3 {[%emt 0:00:24]} Bxd5 {[%emt 0:00:30]} 46. cxd5 {[%emt 0:00:11]} Bf6 {[%emt 0:00:12]} 47. Bxf6 {[%emt 0:01:16]} Nxf6 {[%emt 0:00:01][%mdl 4096] Endgame KRR-KRN} 48. Re6 {[%emt 0:00:08]} Nxd5 {[%emt 0:00:53]} 49. Rxg6+ {[%emt 0:00:06]} Kh7 {[%emt 0:00:20]} 50. Rg5 {[%emt 0:00:06][%csl LRd5,LRh5]} Nc3 {[%emt 0:00:11]} 51. Rxh5+ {[%emt 0:00:19]} Kg6 {[%emt 0:00:05]} 52. Rh4 {[%emt 0:00:06]} d5 {[%emt 0:00:16]} 53. Rd4 {[%emt 0:02:10]} Kf5 {[%emt 0:01:03]} 54. Re1 {[%emt 0:00:30]} Rb7 {[%emt 0:00:31]} 55. Re3 {[%emt 0:00:19]} b4 {[%emt 0:00:11]} 56. g4+ {[%emt 0:00:25]} Kf6 {[%emt 0:00:07]} 57. Kg3 {[%emt 0:00:22]} Ne4+ {[%emt 0:00:42]} 58. Rexe4 {[%emt 0:00:53]} dxe4 {[%emt 0:00:04]} 59. Rxe4 {[%emt 0:00:03] Hoping for h4. KR-KR} Kg6 {[%emt 0:00:11]} 60. h4 {[%emt 0:00:24][%cal Bh3h4,Bh4h5][%mdl 32] White wants to mate with h5+.} Rb5 {[%emt 0:00:33]} 61. Kf4 {[%emt 0:00:11] White mates.} Rb8 {[%emt 0:00:17]} 62. h5+ {[%emt 0:00:46]} Kh6 {[%emt 0:00:09]} 63. Re6+ {[%emt 0:00:03]} Kg7 {[%emt 0:00:15]} 64. g5 {[%emt 0:00:17]} Rf8+ {[%emt 0:00:34]} 65. Ke4 {[%emt 0:00:36]} Rf1 {[%emt 0:00:25]} 66. Re7+ {[%emt 0:00:07]} Kg8 {[%emt 0:00:30]} 67. Rb7 {[%emt 0:00:03]} Rh1 {[%emt 0:00:20]} 68. Kf5 {[%emt 0:00:13]} Rc1 {[%emt 0:00:18]} 69. Rxb4 {[%emt 0:00:44]} Rc5+ {[%emt 0:00:05]} 70. Kg4 {[%emt 0:00:06]} Rc7 {[%emt 0:00:09]} 71. Rb6 {[%emt 0:01:11]} Kg7 {[%emt 0:00:08]} 72. h6+ {[%emt 0:00:34]} Kh7 {[%emt 0:00:12]} 73. Kh5 {[%emt 0:00:02]} Rc8 {[%emt 0:00:09]} 74. Rb7+ {[%emt 0:00:15]} Kh8 {[%emt 0:00:07]} 75. b4 {[%emt 0:00:11][%cal Bb3b4,Bb4b5,Bb5b6,Bb6b7][%mdl 32]} Kg8 {[%emt 0:00:47]} 76. b5 {[%emt 0:00:06]} Rd8 {[%emt 0:00:56]} 77. Rc7 {[%emt 0:01:50]} Rb8 {[%emt 0:00:24]} 78. Kg6 {[%emt 0:01:24]} Kh8 {[%emt 0:00:24]} 79. Rc6 {[%emt 0:00:07]} Rg8+ {[%emt 0:00:12]} 80. Kh5 {[%emt 0:00:06]} Rb8 {[%emt 0:00:04]} 81. b6 {[%emt 0:00:05]} Kg8 {[%emt 0:00:11]} 82. Kg6 {[%emt 0:00:10]} Kh8 {[%emt 0:00:10]} 83. b7 {[%emt 0:00:08] Weighted Error Value: White=0.25 (precise) /Black=0.32} 1-0